Workbook

Sheet 試算表
AK4: 子ども減免額
AC5: 加入する日付 | AE5: 加入期間 | AH5: １８歳以下基準日 | AI5: 上位所得 | AJ5: 子ども人数 | AK5: 医療分 | AL5: 支援分 | AM5: 合計 | AP5: ６歳以下基準日 | AQ5: 対象人数
AC6: =VALUE(S13&T13&U13&V13&W13&X13&Y13) ->  | AE6: =DBCS(V13&W13&X13&Y13)&"～３月３１日" -> 月日～３月３１日 | AH6: 2025-04-01 | AI6: 非該当 | AJ6: =COUNTIF($M$13:$M$19,"○") -> 0 | AK6: =IF(AND(AJ7>=1,$AI$6="非該当"),IF(AJ7-AQ6>=1,($BB$17)*(AJ7-AQ6)+($BB$17-$BD$17)*(AQ6),($BB$17-$BD$17)*(AJ7)),0) -> 0 | AL6: =IF(AND(AJ7>=1,$AI$6="非該当"),IF(AJ7-AQ6>=1,($BB$18)*(AJ7-AQ6)+($BB$18-$BD$18)*(AQ6),($BB$18-$BD$18)*(AJ7)),0) -> 0 | AM6: =FIXED(AK6+AL6,0) -> 0 | AN6: （年） | AP6: 2018-04-02 | AQ6: =COUNTIF(AI10:AI30,"○") -> 0
AH7: までに19歳以上になる者を除く | AJ7: =AJ6-1 -> -1 | AK7: =ROUNDUP(AK6*BM11,0) ->  | AL7: =ROUNDUP(AL6*BM11,0) ->  | AM7: =FIXED(AK7+AL7,0) ->  | AN7: （月） | AP7: 以降生まれの者
AC9: No． | AD9: 生年月日 | AF9: 年齢 | AG9: ←を数値に | AH9: （上）18歳以下基準日時点の年齢 （下）加入日以降に生まれる方（○・×） | AI9: 6歳以下基準日時点の年齢 | AJ9: 軽減後 給与所得 | AK9: 所得調整控除後給与所得 | AL9: 年金所得 | AM9: 総所得 (軽減該当） | AN9: 総所得 (通常） | AO9: 基礎控除後の合計所得(軽減該当) | AP9: 基礎控除後の合計所得（通常） | AQ9: ※年金以外合計所得(所得金額調整控除前) | AS9: 軽減後 所得割 | AT9: 軽減 所得割 合計 | AU9: 通常 所得割 | AV9: 所得割 合計 | AW9: 均等割 （子ども 軽減後） | AX9: 均等割 合計 | AZ9: 通常年税額 | BE9: 軽減年税額
AC10: 1 | AD10: =B13&C13&"年"&D13&"月"&E13&"日" -> 年月日 | AF10: =DATEDIF(AD10,$AC$6,"y") ->  | AG10: =IF(C13>0,VALUE(AF10),"") ->  | AH10: =IF(COUNTA(B13:E13)=4,DATEDIF(AD10,$AH$6,"y"),"") ->  | AI10: =IF(ISERROR(AF10),"",IF(DATEVALUE(AD10)>=$AP$6,"○","")) ->  | AJ10: =IF(F13="該当",AF37*0.3,AF37) -> 0 | AK10: =IF(F13="該当",AJ10-AP38-AP45,AF36) -> 0 | AL10: =AG54 -> 0 | AM10: =AK10+AL10+J13 -> 0 | AN10: =AF36+AL10+J13 -> 0 | AO10: =IF(AM10-430000>0,AM10-430000,0) -> 0 | AP10: =IF(AN10-430000>0,AN10-430000,0) -> 0 | AQ10: =AF37+J13 -> 0 | AR10: 医療分 | AS10: =ROUNDDOWN(IF($AM$10>430000,($AM$10-430000)*$BA$17,0),0) -> 0 | AT10: =AS10+AS11+AS12 -> 0 | AU10: =ROUNDDOWN(IF(AN10>430000,(AN10-430000)*BA17,"0"),0) -> 0 | AV10: =AU10+AU11+AU12 -> 0 | AW10: =IF(AG10<>"",IF(AI10="○",$BB$17-$BD$17,$BB$17),0) -> 0 | AX10: =AW10+AW11+AW12 -> 0 | AZ10: 国保加入者数 | BA10: =COUNTA($C$13:$C$19) -> 0 | BB10: 子ども減免後 | BC10: 月割賦課額 | BE10: 国保加入者数 | BF10: =IF(COUNTIF($F$13:$F$19,"該当")>0,COUNTA($C$13:$C$19),"") ->  | BG10: 子ども減免後 | BH10: 月割賦課額 | BJ10: 加入月 | BK10: 合計金額への補正 | BL10: その年度の残り月数 | BM10: 加入月からの検索結果
AR11: 支援分 | AS11: =IF(AM10>430000,(AM10-430000)*$BA$18,0) -> 0 | AU11: =IF(AN10>430000,(AN10-430000)*BA18,"0") -> 0 | AW11: =IF(AG10<>"",IF(AI10="○",$BB$18-$BD$18,$BB$18),0) -> 0 | AZ11: 医療分年税額 | BA11: =IF(COUNTA($C$13:$C$19)>0,IF($BA$23>$BG$16,$BG$16,$BA$23),"0") -> 0 | BB11: =(IF(BA11-$AK$6>0,ROUNDDOWN(BA11-$AK$6,-2),0)) -> 0 | BC11: =ROUNDDOWN(BA11*$BM$11-AK7,-2) ->  | BE11: 医療分年税額 | BF11: =IF(COUNTIF($F$13:$F$19,"該当")>0,IF($BA$28>$BG$16,$BG$16,$BA$28),"") ->  | BG11: =IF(BF11-$AK$6>0,ROUNDDOWN(BF11-$AK$6,-2),0) ->  | BH11: =ROUNDDOWN(BF11*$BM$11-$AK$7,-2) ->  | BJ11: 1 | BK11: 0.25 | BL11: ３ヶ月分 | BM11: =VLOOKUP(V13,BJ10:BK22,2) -> 
B12: ②生年月日 | F12: ③非自発軽減 | G12: ④給与収入 | H12: ※⑤所得金額調整控除(子ども・特別障がい者等を有する者等) | I12: ⑥年金収入 | J12: ⑦その他所得 | L12: 合計の所得金額 | M12: 18歳以下の方 | N12: 所得割 | O12: 均等割 | P12: 平等割 | Q12: 介護 | S12: ① いつから国保に加入するか | AH12: =IF(COUNTA(B13:E13)<4,"",IF(VALUE(AD10)>$AC$6,"○","")) ->  | AR12: 介護分 | AS12: =IF(AND(AG10>39,AG10<65,$AM$10>430000),($AM$10-430000)*$BA$19,0) -> 0 | AU12: =IF(AND(AG10>39,AG10<65,$AN$10>430000),($AN$10-430000)*$BA$19,0) -> 0 | AW12: =IF(AND(AG10>39,AG10<65,C13>0),$BB$19,0) -> 0 | AZ12: 支援分年税額 | BA12: =IF(COUNTA($C$13:$C$19)>0,IF($BA$24>$BG$17,$BG$17,$BA$24),"0") -> 0 | BB12: =(IF(BA12-$AL$6>0,ROUNDDOWN(BA12-$AL$6,-2),0)) -> 0 | BC12: =ROUNDDOWN(BA12*$BM$11-AL7,-2) ->  | BE12: 支援分年税額 | BF12: =IF(COUNTIF($F$13:$F$19,"該当")>0,IF($BA$29>$BG$17,$BG$17,$BA$29),"") ->  | BG12: =IF(BF12-$AL$6>0,ROUNDDOWN(BF12-$AL$6,-2),0) ->  | BH12: =ROUNDDOWN(BF12*$BM$11-$AL$7,-2) ->  | BJ12: 2 | BK12: 0.1666666667 | BL12: ２ヶ月分
A13: 1 | L13: =IF(C13>0,AM10,"") ->  | M13: =IF(AH12="○","加入日に未出生の方は含められません",IF(AH10<=18,"○","")) ->  | N13: =IF(C13>0,AT10,"") ->  | O13: =IF(C13>0,IF(Q13="該当",SUM($BB$17:$BB$19),SUM($BB$17:$BB$18)),"") ->  | P13: =IF(C13>0,IF(COUNTIF(Q13:Q19,"該当")>0,SUM(BC17:BC19),SUM(BC17:BC18)),"") ->  | Q13: =IF(C13>0,IF(AND(AG10>39,AG10<65),"該当",""),"") ->  | S13: 令和 | U13: 年 | W13: 月 | Y13: 日 | Z13: から | AC13: 2 | AD13: =B14&C14&"年"&D14&"月"&E14&"日" -> 年月日 | AF13: =DATEDIF(AD13,$AC$6,"y") ->  | AG13: =IF(C14>0,VALUE(AF13),"") ->  | AH13: =IF(COUNTA(B14:E14)=4,DATEDIF(AD13,$AH$6,"y"),"") ->  | AI13: =IF(ISERROR(AF13),"",IF(DATEVALUE(AD13)>=$AP$6,"○","")) ->  | AJ13: =IF(F14="該当",AG37*0.3,AG37) -> 0 | AK13: =IF(F14="該当",AJ13-AQ38-AQ45,AG36) -> 0 | AL13: =AG55 -> 0 | AM13: =AK13+AL13+J14 -> 0 | AN13: =AG36+AL13+J14 -> 0 | AO13: =IF(AM13-430000>0,AM13-430000,0) -> 0 | AP13: =IF(AN13-430000>0,AN13-430000,0) -> 0 | AQ13: =AG37+J14 -> 0 | AR13: 医療分 | AS13: =ROUNDDOWN(IF($AM$13>430000,($AM$13-430000)*$BA$17,0),0) -> 0 | AT13: =AS13+AS14+AS15 -> 0 | AU13: =ROUNDDOWN(IF(AN13>430000,(AN13-430000)*BA17,"0"),0) -> 0 | AV13: =AU13+AU14+AU15 -> 0 | AW13: =IF(AG13<>"",IF(AI13="○",$BB$17-$BD$17,$BB$17),0) -> 0 | AX13: =AW13+AW14+AW15 -> 0 | AZ13: 介護分年税額 | BA13: =IF(COUNTA($C$13:$C$19)>0,IF($BA$25>$BG$18,$BG$18,$BA$25),"0") -> 0 | BB13: =ROUNDDOWN(BA13,-2) -> 0 | BC13: =ROUNDDOWN(BA13*$BM$11,-2) ->  | BE13: 介護分年税額 | BF13: =IF(COUNTIF($F$13:$F$19,"該当")>0,IF($BA$30>$BG$18,$BG$18,$BA$30),"") ->  | BG13: =IF(BF13-$AK$7>0,ROUNDDOWN(BF13-$AK$7,-2),0) ->  | BH13: =ROUNDDOWN(BF13*$BM$11,-2) ->  | BJ13: 3 | BK13: 0.08333333333 | BL13: １ヶ月分 | BM13: 「○○ヶ月分」と表示させる
A14: 2 | L14: =IF(C14>0,AM13,"") ->  | M14: =IF(AH15="○","加入日に未出生の方は含められません",IF(AH13<=18,"○","")) ->  | N14: =IF(C14>0,AT13,"") ->  | Q14: =IF(C14>0,IF(AND(AG13>39,AG13<65),"該当",""),"") ->  | AR14: 支援分 | AS14: =IF($AM$13>430000,ROUNDDOWN(($AM$13-430000)*$BA$18,0),0) -> 0 | AU14: =IF(AN13>430000,(AN13-430000)*BA18,"0") -> 0 | AW14: =IF(AG13<>"",IF(AI13="○",$BB$18-$BD$18,$BB$18),0) -> 0 | AZ14: 計 | BA14: =SUM(BA11:BA13) -> 0 | BB14: =SUM(BB11:BB13) -> 0 | BC14: =SUM(BC11:BC13) ->  | BE14: 計 | BF14: =SUM(BF11:BF13) -> 0 | BG14: =SUM(BG11:BG13) ->  | BH14: =SUM(BH11:BH13) ->  | BJ14: 4 | BK14: 1 | BL14: １２ヶ月分 | BM14: =IF(C13>0,VLOOKUP(V13,BJ10:BL22,3),"") -> 
A15: 3 | L15: =IF(C15>0,AM16,"") ->  | M15: =IF(AH18="○","加入日に未出生の方は含められません",IF(AH16<=18,"○","")) ->  | N15: =IF(C15>0,AT16,"") ->  | Q15: =IF(C15>0,IF(AND(AG16>39,AG16<65),"該当",""),"") ->  | AH15: =IF(COUNTA(B14:E14)<4,"",IF(VALUE(AD13)>$AC$6,"○","")) ->  | AR15: 介護分 | AS15: =IF(AND(AG13>39,AG13<65,$AM$13>430000),($AM$13-430000)*$BA$19,0) -> 0 | AU15: =IF(AND(AG13>39,AG13<65,$AN$13>430000),($AN$13-430000)*$BA$19,0) -> 0 | AW15: =IF(AND(AG13>39,AG13<65,C14>0),$BB$19,0) -> 0 | BB15: =IF(AND(COUNTA(B13:E13)=4,ISNUMBER(BB14)),"減免額表示","入力不備") -> 入力不備 | BJ15: 5 | BK15: 0.9166666667 | BL15: １１ヶ月分 | BM15: ↓「非自発的軽減該当時の一ヶ月分の金額」
A16: 4 | L16: =IF(C16>0,AM19,"") ->  | M16: =IF(AH21="○","加入日に未出生の方は含められません",IF(AH19<=18,"○","")) ->  | N16: =IF(C16>0,AT19,"") ->  | Q16: =IF(C16>0,IF(AND(AG19>39,AG19<65),"該当",""),"") ->  | AC16: 3 | AD16: =B15&C15&"年"&D15&"月"&E15&"日" -> 年月日 | AF16: =DATEDIF(AD16,$AC$6,"y") ->  | AG16: =IF(C15>0,VALUE(AF16),"") ->  | AH16: =IF(COUNTA(B15:E15)=4,DATEDIF(AD16,$AH$6,"y"),"") ->  | AI16: =IF(ISERROR(AF16),"",IF(DATEVALUE(AD16)>=$AP$6,"○","")) ->  | AJ16: =IF(F15="該当",AH37*0.3,AH37) -> 0 | AK16: =IF(F15="該当",AJ16-AR38-AR45,AH36) -> 0 | AL16: =AG56 -> 0 | AM16: =AK16+AL16+J15 -> 0 | AN16: =AH36+AL16+J15 -> 0 | AO16: =IF(AM16-430000>0,AM16-430000,0) -> 0 | AP16: =IF(AN16-430000>0,AN16-430000,0) -> 0 | AQ16: =AH37+J15 -> 0 | AR16: 医療分 | AS16: =ROUNDDOWN(IF($AM$16>430000,($AM$16-430000)*$BA$17,0),0) -> 0 | AT16: =AS16+AS17+AS18 -> 0 | AU16: =ROUNDDOWN(IF($AN$16>430000,($AN$16-430000)*BA17,"0"),0) -> 0 | AV16: =AU16+AU17+AU18 -> 0 | AW16: =IF(AG16<>"",IF(AI16="○",$BB$17-$BD$17,$BB$17),0) -> 0 | AX16: =AW16+AW17+AW18 -> 0 | AZ16: 税率 | BA16: 所得割 | BB16: 均等割 | BC16: 平等割 | BD16: 子ども均等割 軽減額 | BF16: 医療分限度額 | BG16: 650000 | BJ16: 6 | BK16: 0.8333333333 | BL16: １０ヶ月分 | BM16: =IF(AND($BM$23="試算額表示",COUNTIF($F$13:$F$19,"該当")>0),"約"&FIXED($BH$14/$BM$11/12,0,FALSE)&"円","") -> 
A17: 5 | L17: =IF(C17>0,AM22,"") ->  | M17: =IF(AH24="○","加入日に未出生の方は含められません",IF(AH22<=18,"○","")) ->  | N17: =IF(C17>0,AT22,"") ->  | Q17: =IF(C17>0,IF(AND(AG22>39,AG22<65),"該当",""),"") ->  | AR17: 支援分 | AS17: =IF($AM$16>430000,($AM$16-430000)*$BA$18,0) -> 0 | AU17: =IF($AN$16>430000,($AN$16-430000)*BA18,"0") -> 0 | AW17: =IF(AG16<>"",IF(AI16="○",$BB$18-$BD$18,$BB$18),0) -> 0 | AZ17: 医療分 | BA17: 0.065 | BB17: 19700 | BC17: 18300 | BD17: =BB17*0.5 -> 9850 | BF17: 支援分限度額 | BG17: 220000 | BJ17: 7 | BK17: 0.75 | BL17: ９ヶ月分 | BM17: ↓「非自発的軽減該当時の○○月分の金額」
A18: 6 | L18: =IF(C18>0,AM25,"") ->  | M18: =IF(AH27="○","加入日に未出生の方は含められません",IF(AH25<=18,"○","")) ->  | N18: =IF(C18>0,AT25,"") ->  | Q18: =IF(C18>0,IF(AND(AG25>39,AG25<65),"該当",""),"") ->  | AH18: =IF(COUNTA(B15:E15)<4,"",IF(VALUE(AD16)>$AC$6,"○","")) ->  | AR18: 介護分 | AS18: =IF(AND(AG16>39,AG16<65,$AM$16>430000),($AM$16-430000)*$BA$19,0) -> 0 | AU18: =IF(AND(AG16>39,AG16<65,$AN$16>430000),($AN$16-430000)*$BA$19,0) -> 0 | AW18: =IF(AND(AG16>39,AG16<65,C15>0),$BB$19,0) -> 0 | AZ18: 支援分 | BA18: 0.026 | BB18: 7800 | BC18: 7200 | BD18: =BB18*0.5 -> 3900 | BF18: 介護分限度額 | BG18: 170000 | BJ18: 8 | BK18: 0.6666666667 | BL18: ８ヶ月分 | BM18: =IF(AND($BM$23="試算額表示",COUNTIF($F$13:$F$19,"該当")>0),IF($E$13>0,"約"&FIXED($BH$14,0,FALSE)&"円",""),"") ->  | BN18: 子ども減免 非該当時 → | BO18: =IF($BM$23="試算額表示",ROUNDDOWN(BA14*BM11,-2),"") -> 
A19: 7 | L19: =IF(C19>0,AM28,"") ->  | M19: =IF(AH30="○","加入日に未出生の方は含められません",IF(AH28<=18,"○","")) ->  | N19: =IF(C19>0,AT28,"") ->  | Q19: =IF(C19>0,IF(AND(AG28>39,AG28<65),"該当",""),"") ->  | AC19: 4 | AD19: =B16&C16&"年"&D16&"月"&E16&"日" -> 年月日 | AF19: =DATEDIF(AD19,$AC$6,"y") ->  | AG19: =IF(C16>0,VALUE(AF19),"") ->  | AH19: =IF(COUNTA(B16:E16)=4,DATEDIF(AD19,$AH$6,"y"),"") ->  | AI19: =IF(ISERROR(AF19),"",IF(DATEVALUE(AD19)>=$AP$6,"○","")) ->  | AJ19: =IF(F16="該当",AI37*0.3,AI37) -> 0 | AK19: =IF(F16="該当",AJ19-AS38-AS45,AI36) -> 0 | AL19: =AG57 -> 0 | AM19: =AK19+AL19+J16 -> 0 | AN19: =AI36+AL19+J16 -> 0 | AO19: =IF(AM19-430000>0,AM19-430000,0) -> 0 | AP19: =IF(AN19-430000>0,AN19-430000,0) -> 0 | AQ19: =AI37+J16 -> 0 | AR19: 医療分 | AS19: =ROUNDDOWN(IF($AM$19>430000,($AM$19-430000)*$BA$17,0),0) -> 0 | AT19: =AS19+AS20+AS21 -> 0 | AU19: =ROUNDDOWN(IF($AN$19>430000,($AN$19-430000)*$BA$17,"0"),0) -> 0 | AV19: =AU19+AU20+AU21 -> 0 | AW19: =IF(AG19<>"",IF(AI19="○",$BB$17-$BD$17,$BB$17),0) -> 0 | AX19: =AW19+AW20+AW21 -> 0 | AZ19: 介護分 | BA19: 0.026 | BB19: 10000 | BC19: 6200 | BD19: =BB19*0.5 -> 5000 | BJ19: 9 | BK19: 0.5833333333 | BL19: ７ヶ月分 | BM19: ↓「通常時一月分の金額」 | BO19: ↓
B20: ※⑤所得金額調整控除（子ども・特別障がい者等を有する者等）欄は給与収入が850万円を超え、 | AR20: 支援分 | AS20: =IF($AM$19>430000,($AM$19-430000)*$BA$18,0) -> 0 | AU20: =IF($AN$19>430000,($AN$19-430000)*$BA$18,"0") -> 0 | AW20: =IF(AG19<>"",IF(AI19="○",$BB$18-$BD$18,$BB$18),0) -> 0 | BJ20: 10 | BK20: 0.5 | BL20: ６ヶ月分 | BM20: =IF(AND($BM$23="試算額表示",$BO$22/$BM$11>0),"約"&FIXED($BO$22/$BM$11/12,0,FALSE)&"円","") ->  | BO20: ↓
B21: 適用対象者の方 （1.本人が特別障がい者である場合 2.年齢23歳未満の扶養親族がいる場合 | AH21: =IF(COUNTA(B16:E16)<4,"",IF(VALUE(AD19)>$AC$6,"○","")) ->  | AR21: 介護分 | AS21: =IF(AND(AG19>39,AG19<65,$AM$19>430000),($AM$19-430000)*$BA$19,0) -> 0 | AU21: =IF(AND(AG19>39,AG19<65,$AN$19>430000),($AN$19-430000)*$BA$19,0) -> 0 | AW21: =IF(AND(AG19>39,AG19<65,C16>0),$BB$19,0) -> 0 | AZ21: 軽減該当前 | BJ21: 11 | BK21: 0.4166666667 | BL21: ５ヶ月分 | BM21: ↓「通常時○○月分の金額」 | BO21: ↓
B22: 3.特別障がい者である同一生計配偶者・扶養親族がいる場合）のみ「有」となります。 | AC22: 5 | AD22: =B17&C17&"年"&D17&"月"&E17&"日" -> 年月日 | AF22: =DATEDIF(AD22,$AC$6,"y") ->  | AG22: =IF(C17>0,VALUE(AF22),"") ->  | AH22: =IF(COUNTA(B17:E17)=4,DATEDIF(AD22,$AH$6,"y"),"") ->  | AI22: =IF(ISERROR(AF22),"",IF(DATEVALUE(AD22)>=$AP$6,"○","")) ->  | AJ22: =IF(F17="該当",AJ37*0.3,AJ37) -> 0 | AK22: =IF(F17="該当",AJ22-AT38-AT45,AJ36) -> 0 | AL22: =AG58 -> 0 | AM22: =AK22+AL22+J17 -> 0 | AN22: =AJ36+AL22+J17 -> 0 | AO22: =IF(AM22-430000>0,AM22-430000,0) -> 0 | AP22: =IF(AN22-430000>0,AN22-430000,0) -> 0 | AQ22: =AJ37+J17 -> 0 | AR22: 医療分 | AS22: =ROUNDDOWN(IF($AM$22>430000,($AM$22-430000)*$BA$17,0),0) -> 0 | AT22: =AS22+AS23+AS24 -> 0 | AU22: =ROUNDDOWN(IF($AN$22>430000,($AN$22-430000)*$BA$17,"0"),0) -> 0 | AV22: =AU22+AU23+AU24 -> 0 | AW22: =IF(AG22<>"",IF(AI22="○",$BB$17-$BD$17,$BB$17),0) -> 0 | AX22: =AW22+AW23+AW24 -> 0 | BA22: 子ども減免前 | BJ22: 12 | BK22: 0.3333333333 | BL22: ４ヶ月分 | BM22: =IF($BM$23="試算額表示","約"&FIXED($BO$22,0,FALSE)&"円","") ->  | BN22: ← ← ← ← | BO22: =IF(AND(COUNTIF($F$13:$F$19,"該当")>0,SUM($AP$10:$AP$30)>6000000),$BO$18,IF($BM$23="試算額表示",$BC$14,"")) -> 
AR23: 支援分 | AS23: =IF($AM$22>430000,($AM$22-430000)*$BA$18,0) -> 0 | AU23: =IF($AN$22>430000,($AN$22-430000)*$BA$18,"0") -> 0 | AW23: =IF(AG22<>"",IF(AI22="○",$BB$18-$BD$18,$BB$18),0) -> 0 | AZ23: 医療分小計 | BA23: =AU10+AW10+AU13+AW13+AU16+AW16+AU19+AW19+AU22+AW22+AU25+AW25+AU28+AW28+BC17 -> 18300 | BM23: =IF(AND(COUNTA(B13:E13)=4,ISNUMBER(BB14)),"試算額表示","入力不備") -> 入力不備
B24: 国保税額 | F24: 通 常 | H24: 非自発軽減該当時 | K24: 18歳以下の均等割 減免されている額（年額） | AH24: =IF(COUNTA(B17:E17)<4,"",IF(VALUE(AD22)>$AC$6,"○","")) ->  | AR24: 介護分 | AS24: =IF(AND(AG22>39,AG22<65,$AM$22>430000),($AM$22-430000)*$BA$19,0) -> 0 | AU24: =IF(AND(AG22>39,AG22<65,$AN$22>430000),($AN$22-430000)*$BA$19,"0") -> 0 | AW24: =IF(AND(AG22>39,AG22<65,C17>0),$BB$19,0) -> 0 | AZ24: 支援分小計 | BA24: =AU11+AW11+AU14+AW14+AU17+AW17+AU20+AW20+AU23+AW23+AU26+AW26+AU29+AW29+BC18 -> 7200
B25: =IF(X13>0,AE6,"") ->  | F25: =IF(AND(G13<=8500000,H13="有"),"④給与収入850万円以下の場合、※⑤所得金額調整控除を「無」にしてください",IF(ISERROR(BM22),"①、②を入力すると",BM22)) ->  | H25: =IF(AND(G13<=8500000,H13="有"),"",IF(ISERROR(BM22),"計算結果が表示されます",BM18)) ->  | K25: =IF(AND($BB$15="減免額表示",AJ6>1),IF($AI$6="非該当","約"&$AM$7&"円","上位所得世帯に該当します"),"１８歳以下の子どもが２人以上いる場合、２人 目以降の均等割額分の減免額が表示されます") -> １８歳以下の子どもが２人以上いる場合、２人 目以降の均等割額分の減免額が表示されます | AC25: 6 | AD25: =B18&C18&"年"&D18&"月"&E18&"日" -> 年月日 | AF25: =DATEDIF(AD25,$AC$6,"y") ->  | AG25: =IF(C18>0,VALUE(AF25),"") ->  | AH25: =IF(COUNTA(B18:E18)=4,DATEDIF(AD25,$AH$6,"y"),"") ->  | AI25: =IF(ISERROR(AF25),"",IF(DATEVALUE(AD25)>=$AP$6,"○","")) ->  | AJ25: =IF(F18="該当",AK37*0.3,AK37) -> 0 | AK25: =IF(F18="該当",AJ25-AU38-AU45,AK36) -> 0 | AL25: =AG59 -> 0 | AM25: =AK25+AL25+J18 -> 0 | AN25: =AK36+AL25+J18 -> 0 | AO25: =IF(AM25-430000>0,AM25-430000,0) -> 0 | AP25: =IF(AN25-430000>0,AN25-430000,0) -> 0 | AQ25: =AK37+J18 -> 0 | AR25: 医療分 | AS25: =ROUNDDOWN(IF($AM$25>430000,($AM$25-430000)*$BA$17,0),0) -> 0 | AT25: =AS25+AS26+AS27 -> 0 | AU25: =ROUNDDOWN(IF($AN$25>430000,($AN$25-430000)*$BA$17,"0"),0) -> 0 | AV25: =AU25+AU26+AU27 -> 0 | AW25: =IF(AG25<>"",IF(AI25="○",$BB$17-$BD$17,$BB$17),0) -> 0 | AX25: =AW25+AW26+AW27 -> 0 | AZ25: 介護分小計 | BA25: =$AU$12+$AW$12+$AU$15+$AW$15+$AU$18+$AW$18+$AU$21+$AW$21+$AU$24+$AW$24+$AU$27+$AW$27+$AU$30+$AW$30+IF(COUNTIF($Q$13:$Q$19,"該当")>0,$BC$19,"0") -> 0 | BP25: =IF($BM$23="試算額表示","約"&FIXED(ROUNDDOWN(BB14*BM11,-2),0,FALSE)&"円","") -> 
AR26: 支援分 | AS26: =IF($AM$25>430000,($AM$25-430000)*$BA$18,0) -> 0 | AU26: =IF($AN$25>430000,($AN$25-430000)*$BA$18,"0") -> 0 | AW26: =IF(AG25<>"",IF(AI25="○",$BB$18-$BD$18,$BB$18),0) -> 0 | AZ26: 軽減該当後
B27: １ヶ月分 | F27: =IF(ISERROR(BM20),"",BM20) ->  | H27: =IF(ISERROR(BM16),"",BM16) ->  | AH27: =IF(COUNTA(B18:E18)<4,"",IF(VALUE(AD25)>$AC$6,"○","")) ->  | AR27: 介護分 | AS27: =IF(AND(AG25>39,AG25<65,$AM$25>430000),($AM$25-430000)*$BA$19,0) -> 0 | AU27: =IF(AND(AG25>39,AG25<65,$AN$25>430000),($AN$25-430000)*$BA$19,0) -> 0 | AW27: =IF(AND(AG25>39,AG25<65,C18>0),$BB$19,0) -> 0 | BA27: 子ども減免前
AC28: 7 | AD28: =B19&C19&"年"&D19&"月"&E19&"日" -> 年月日 | AF28: =DATEDIF(AD28,$AC$6,"y") ->  | AG28: =IF(C19>0,VALUE(AF28),"") ->  | AH28: =IF(COUNTA(B19:E19)=4,DATEDIF(AD28,$AH$6,"y"),"") ->  | AI28: =IF(ISERROR(AF28),"",IF(DATEVALUE(AD28)>=$AP$6,"○","")) ->  | AJ28: =IF(F19="該当",AL37*0.3,AL37) -> 0 | AK28: =IF(F19="該当",AJ28-AV38-AV45,AL36) -> 0 | AL28: =AG60 -> 0 | AM28: =AK28+AL28+J19 -> 0 | AN28: =AL36+AL28+J19 -> 0 | AO28: =IF(AM28-430000>0,AM28-430000,0) -> 0 | AP28: =IF(AN28-430000>0,AN28-430000,0) -> 0 | AQ28: =AL37+J19 -> 0 | AR28: 医療分 | AS28: =ROUNDDOWN(IF($AM$28>430000,($AM$28-430000)*$BA$17,0),0) -> 0 | AT28: =AS28+AS29+AS30 -> 0 | AU28: =ROUNDDOWN(IF($AN$28>430000,($AN$28-430000)*$BA$17,"0"),0) -> 0 | AV28: =AU28+AU29+AU30 -> 0 | AW28: =IF(AG28<>"",IF(AI28="○",$BB$17-$BD$17,$BB$17),0) -> 0 | AX28: =AW28+AW29+AW30 -> 0 | AZ28: 医療分小計 | BA28: =AS10+AW10+AS13+AW13+AS16+AW16+AS19+AW19+AS22+AW22+AS25+AW25+AS28+AW28+BC17 -> 18300
B29: ★国民健康保険税の軽減：一定の所得以下の世帯に対して、均等割額・平等割額を軽減する制度があります。 | AR29: 支援分 | AS29: =IF($AM$28>430000,($AM$28-430000)*$BA$18,0) -> 0 | AU29: =IF($AN$28>430000,($AN$28-430000)*$BA$18,"0") -> 0 | AW29: =IF(AG28<>"",IF(AI28="○",$BB$18-$BD$18,$BB$18),0) -> 0 | AZ29: 支援分小計 | BA29: =AS11+AW11+AS14+AW14+AS17+AW17+AS20+AW20+AS23+AW23+AS26+AW26+AS29+AW29+BC18 -> 7200
B30: →詳しくはこちら： | E30: http://www.city.fukushima.fukushima.jp/kokuho-shikaku/kurashi/kokuho/hokenkyufu/sedo/1072.html | AH30: =IF(COUNTA(B19:E19)<4,"",IF(VALUE(AD28)>$AC$6,"○","")) ->  | AR30: 介護分 | AS30: =IF(AND(AG28>39,AG28<65,$AM$28>430000),($AM$28-430000)*$BA$19,0) -> 0 | AU30: =IF(AND(AG28>39,AG28<65,$AN$28>430000),($AN$28-430000)*$BA$19,0) -> 0 | AW30: =IF(AND(AG28>39,AG28<65,C19>0),$BB$19,0) -> 0 | AZ30: 介護分小計 | BA30: =AS12+AW12+AS15+AW15+AS18+AW18+AS21+AW21+AS24+AW24+AS27+AW27+AS30+AW30+IF(COUNTIF(Q13:Q19,"該当")>0,BC19,"0") -> 0
B31: ★非自発的失業者にかかる国民健康保険税の軽減：会社の倒産・解雇などによる離職（特定受給資格者）や | AN31: =SUM(AO10:AO30) -> 0 | AO31: =SUM(AP10:AP30) -> 0
B32: 雇い止めなどによる離職（特定理由離職者）により、職場の健康保険等を脱退したかたに対する軽減制度があります。
B33: →詳しくはこちら： | E33: http://www.city.fukushima.fukushima.jp/kokuho-shikaku/kurashi/kokuho/hokenkyufu/sedo/1061.html
AC34: ＜給与所得＞
AD35: パラメータ | AF35: 1 | AG35: 2 | AH35: 3 | AI35: 4 | AJ35: 5 | AK35: 6 | AL35: 7 | AN35: ＜所得金額調整控除＞
AD36: 調整控除後給与所得 | AF36: =IF(H13="有",AF37-AP38-AP45,AF37-AP45) -> 0 | AG36: =IF(H14="有",AG37-AQ38-AQ45,AG37-AQ45) -> 0 | AH36: =IF(H15="有",AH37-AR38-AR45,AH37-AR45) -> 0 | AI36: =IF(H16="有",AI37-AS38-AS45,AI37-AS45) -> 0 | AJ36: =IF(H17="有",AJ37-AT38-AT45,AJ37-AT45) -> 0 | AK36: =IF(H18="有",AK37-AU38-AU45,AK37-AU45) -> 0 | AL36: =IF(H19="有",AL37-AV38-AV45,AL37-AV45) -> 0 | AN36: １項：特別障がい者等（給与収入850万超えの場合）
AD37: 軽減・所得控除前給与所得 | AF37: =VLOOKUP(G13,AD38:AF48,3) -> 0 | AG37: =VLOOKUP(G14,AD38:AG48,4) -> 0 | AH37: =VLOOKUP(G15,AD38:AH48,5) -> 0 | AI37: =VLOOKUP(G16,AD38:AI48,6) -> 0 | AJ37: =VLOOKUP(G17,AD38:AJ48,7) -> 0 | AK37: =VLOOKUP(G18,AD38:AK48,8) -> 0 | AL37: =VLOOKUP(G19,AD38:AL48,9) -> 0 | AN37: パラメータ（子ども・特別障がい者等調整控除有） | AP37: 1 | AQ37: 2 | AR37: 3 | AS37: 4 | AT37: 5 | AU37: 6 | AV37: 7
AD38: 0 | AE38: 550999 | AF38: 0 | AG38: 0 | AH38: 0 | AI38: 0 | AJ38: 0 | AK38: 0 | AL38: 0 | AO38: １項調整 控除額 | AP38: =IF(H13="有",VLOOKUP(G13,AN39:AP40,3),0) -> 0 | AQ38: =IF(H14="有",VLOOKUP(G14,AN39:AQ40,4),0) -> 0 | AR38: =IF(H15="有",VLOOKUP(G15,AN39:AR40,5),0) -> 0 | AS38: =IF(H16="有",VLOOKUP(G16,AN39:AS40,6),0) -> 0 | AT38: =IF(H17="有",VLOOKUP(G17,AN39:AT40,7),0) -> 0 | AU38: =IF(H18="有",VLOOKUP(G18,AN39:AU40,8),0) -> 0 | AV38: =IF(H19="有",VLOOKUP(G19,AN39:AV40,9),0) -> 0
AD39: 551000 | AE39: 1618999 | AF39: =G13-550000 -> -550000 | AG39: =G14-550000 -> -550000 | AH39: =G15-550000 -> -550000 | AI39: =G16-550000 -> -550000 | AJ39: =G17-550000 -> -550000 | AK39: =G18-550000 -> -550000 | AL39: =G19-550000 -> -550000 | AN39: 8500001 | AO39: 9999999 | AP39: =ROUNDUP((G13-8500000)*0.1,0) -> -850000 | AQ39: =ROUNDUP((G14-8500000)*0.1,0) -> -850000 | AR39: =ROUNDUP((G15-8500000)*0.1,0) -> -850000 | AS39: =ROUNDUP((G16-8500000)*0.1,0) -> -850000 | AT39: =ROUNDUP((G17-8500000)*0.1,0) -> -850000 | AU39: =ROUNDUP((G18-8500000)*0.1,0) -> -850000 | AV39: =ROUNDUP((G19-8500000)*0.1,0) -> -850000
AD40: 1619000 | AE40: 1619999 | AF40: 1069000 | AG40: 1069000 | AH40: 1069000 | AI40: 1069000 | AJ40: 1069000 | AK40: 1069000 | AL40: 1069000 | AN40: 10000000 | AP40: =150000 -> 150000 | AQ40: 150000 | AR40: 150000 | AS40: 150000 | AT40: 150000 | AU40: 150000 | AV40: 150000
AD41: 1620000 | AE41: 1621999 | AF41: 1070000 | AG41: 1070000 | AH41: 1070000 | AI41: 1070000 | AJ41: 1070000 | AK41: 1070000 | AL41: 1070000
AD42: 1622000 | AE42: 1623999 | AF42: 1072000 | AG42: 1072000 | AH42: 1072000 | AI42: 1072000 | AJ42: 1072000 | AK42: 1072000 | AL42: 1072000
AD43: 1624000 | AE43: 1627999 | AF43: 1074000 | AG43: 1074000 | AH43: 1074000 | AI43: 1074000 | AJ43: 1074000 | AK43: 1074000 | AL43: 1074000 | AN43: ２項：年金所得がある者
AD44: 1628000 | AE44: 1799999 | AF44: =ROUNDDOWN(G13/4,-3)*4*0.6+100000 -> 100000 | AG44: =ROUNDDOWN(G14/4,-3)*4*0.6+100000 -> 100000 | AH44: =ROUNDDOWN(G15/4,-3)*4*0.6+100000 -> 100000 | AI44: =ROUNDDOWN(G16/4,-3)*4*0.6+100000 -> 100000 | AJ44: =ROUNDDOWN(G17/4,-3)*4*0.6+100000 -> 100000 | AK44: =ROUNDDOWN(G18/4,-3)*4*0.6+100000 -> 100000 | AL44: =ROUNDDOWN(G19/4,-3)*4*0.6+100000 -> 100000 | AN44: 調整控除額 | AP44: 1 | AQ44: 2 | AR44: 3 | AS44: 4 | AT44: 5 | AU44: 6 | AV44: 7
AD45: 1800000 | AE45: 3599999 | AF45: =ROUNDDOWN(G13/4,-3)*4*0.7-80000 -> -80000 | AG45: =ROUNDDOWN(G14/4,-3)*4*0.7-80000 -> -80000 | AH45: =ROUNDDOWN(G15/4,-3)*4*0.7-80000 -> -80000 | AI45: =ROUNDDOWN(G16/4,-3)*4*0.7-80000 -> -80000 | AJ45: =ROUNDDOWN(G17/4,-3)*4*0.7-80000 -> -80000 | AK45: =ROUNDDOWN(G18/4,-3)*4*0.7-80000 -> -80000 | AL45: =ROUNDDOWN(G19/4,-3)*4*0.7-80000 -> -80000 | AP45: =IF(AP48-100000<0,0,AP48-100000) -> 0 | AQ45: =IF(AQ48-100000<0,0,AQ48-100000) -> 0 | AR45: 0 | AS45: 0 | AT45: 0 | AU45: 0 | AV45: =IF(AV48-100000<0,0,AV48-100000) -> 0
AD46: 3600000 | AE46: 6599999 | AF46: =ROUNDDOWN(G13/4,-3)*4*0.8-440000 -> -440000 | AG46: =ROUNDDOWN(G14/4,-3)*4*0.8-440000 -> -440000 | AH46: =ROUNDDOWN(G15/4,-3)*4*0.8-440000 -> -440000 | AI46: =ROUNDDOWN(G16/4,-3)*4*0.8-440000 -> -440000 | AJ46: =ROUNDDOWN(G17/4,-3)*4*0.8-440000 -> -440000 | AK46: =ROUNDDOWN(G18/4,-3)*4*0.8-440000 -> -440000 | AL46: =ROUNDDOWN(G19/4,-3)*4*0.8-440000 -> -440000 | AN46: a.給与所得（上限10万円） | AP46: =IF(AF37>=100000,100000,AF37) -> 0 | AQ46: 0 | AR46: 0 | AS46: 0 | AT46: 0 | AU46: 0 | AV46: 0
AD47: 6600000 | AE47: 8499999 | AF47: =G13*0.9-1100000 -> -1100000 | AG47: =G14*0.9-1100000 -> -1100000 | AH47: =G15*0.9-1100000 -> -1100000 | AI47: =G16*0.9-1100000 -> -1100000 | AJ47: =G17*0.9-1100000 -> -1100000 | AK47: =G18*0.9-1100000 -> -1100000 | AL47: =G19*0.9-1100000 -> -1100000 | AN47: b.年金所得（上限10万円） | AP47: =IF(AG54>=100000,100000,AG54) -> 0 | AQ47: =IF(AG55>=100000,100000,AG55) -> 0 | AR47: =IF(AG56>=100000,100000,AG56) -> 0 | AS47: =IF(AG57>=100000,100000,AG57) -> 0 | AT47: =IF(AG58>=100000,100000,AG58) -> 0 | AU47: =IF(AG59>=100000,100000,AG59) -> 0 | AV47: =IF(AG60>=100000,100000,AG60) -> 0
AD48: 8500000 | AF48: =G13-1950000 -> -1950000 | AG48: =G14-1950000 -> -1950000 | AH48: =G15-1950000 -> -1950000 | AI48: =G16-1950000 -> -1950000 | AJ48: =G17-1950000 -> -1950000 | AK48: =G18-1950000 -> -1950000 | AL48: =G19-1950000 -> -1950000 | AN48: a+b | AP48: =SUM(AP46:AP47) -> 0 | AQ48: 0 | AR48: 0 | AS48: 0 | AT48: 0 | AU48: 0 | AV48: 0
AC51: ＜年金所得＞
AD52: 生年 月日 | AE52: ←を計算 可能に | AF52: 年齢区分 | AG52: 年金所得 | AJ52: 年金控除減少額（年金以外所得が1000万以上） | AK52: 年金所得算出パラメータ
AH53: 65歳未満の場合 | AI53: 65歳以上の場合
AC54: 1 | AD54: =IF(C13>0,IF(B13="令和","5",IF(B13="平成","4",IF(B13="昭和","3","")))&C13&D13&E13,"") ->  | AE54: =IF(C13>0,VALUE(AD54),"") ->  | AF54: =IF(AE54="","",IF(AE54<=$AF$63,"65歳以上","65歳未満")) ->  | AG54: =IF(AE54<=$AF$63,AI54,AH54) -> 0 | AH54: =IF(I13*VLOOKUP(I13,$AK$60:$AM$64,2)-VLOOKUP(I13,$AK$60:$AM$64,3)+AJ54>0,I13*VLOOKUP(I13,$AK$60:$AM$64,2)-VLOOKUP(I13,$AK$60:$AM$64,3)+AJ54,0) -> 0 | AI54: =IF(I13*VLOOKUP(I13,$AK$54:$AM$58,2)-VLOOKUP(I13,$AK$54:$AM$58,3)+AJ54>0,I13*VLOOKUP(I13,$AK$54:$AM$58,2)-VLOOKUP(I13,$AK$54:$AM$58,3)+AJ54,0) -> 0 | AJ54: =IF(AQ10<=10000000,0,IF(AQ10<=20000000,100000,200000)) -> 0 | AK54: 0 | AL54: 1 | AM54: 1100000
AC55: 2 | AD55: =IF(C14>0,IF(B14="令和","5",IF(B14="平成","4",IF(B14="昭和","3","")))&C14&D14&E14,"") ->  | AE55: =IF(C14>0,VALUE(AD55),"") ->  | AF55: =IF(AE55="","",IF(AE55<=$AF$63,"65歳以上","65歳未満")) ->  | AG55: 0 | AH55: =IF(I14*VLOOKUP(I14,$AK$60:$AM$64,2)-VLOOKUP(I14,$AK$60:$AM$64,3)+AJ55>0,I14*VLOOKUP(I14,$AK$60:$AM$64,2)-VLOOKUP(I14,$AK$60:$AM$64,3)+AJ55,0) -> 0 | AI55: =IF(I14*VLOOKUP(I14,$AK$54:$AM$58,2)-VLOOKUP(I14,$AK$54:$AM$58,3)+AJ55>0,I14*VLOOKUP(I14,$AK$54:$AM$58,2)-VLOOKUP(I14,$AK$54:$AM$58,3)+AJ55,0) -> 0 | AJ55: =IF(AQ13<=10000000,0,IF(AQ13<=20000000,100000,200000)) -> 0 | AK55: 3300000 | AL55: 0.75 | AM55: 275000
AC56: 3 | AD56: =IF(C15>0,IF(B15="令和","5",IF(B15="平成","4",IF(B15="昭和","3","")))&C15&D15&E15,"") ->  | AE56: =IF(C15>0,VALUE(AD56),"") ->  | AG56: 0 | AH56: 0 | AI56: 0 | AJ56: =IF(AQ16<=10000000,0,IF(AQ16<=20000000,100000,200000)) -> 0 | AK56: 4100000 | AL56: 0.85 | AM56: 685000
AC57: 4 | AG57: 0 | AH57: =IF(I16*VLOOKUP(I16,$AK$60:$AM$64,2)-VLOOKUP(I16,$AK$60:$AM$64,3)+AJ57>0,I16*VLOOKUP(I16,$AK$60:$AM$64,2)-VLOOKUP(I16,$AK$60:$AM$64,3)+AJ57,0) -> 0 | AI57: 0 | AJ57: =IF(AQ19<=10000000,0,IF(AQ19<=20000000,100000,200000)) -> 0 | AK57: 7700000 | AL57: 0.95 | AM57: 1455000
AC58: 5 | AG58: 0 | AH58: 0 | AI58: 0 | AJ58: =IF(AQ22<=10000000,0,IF(AQ22<=20000000,100000,200000)) -> 0 | AK58: 10000000 | AL58: 1 | AM58: 1955000
AC59: 6 | AD59: =IF(C18>0,IF(B18="令和","5",IF(B18="平成","4",IF(B18="昭和","3","")))&C18&D18&E18,"") ->  | AE59: =IF(C18>0,VALUE(AD59),"") ->  | AG59: 0 | AH59: 0 | AI59: =IF(I18*VLOOKUP(I18,$AK$54:$AM$58,2)-VLOOKUP(I18,$AK$54:$AM$58,3)+AJ59>0,I18*VLOOKUP(I18,$AK$54:$AM$58,2)-VLOOKUP(I18,$AK$54:$AM$58,3)+AJ59,0) -> 0 | AJ59: =IF(AQ25<=10000000,0,IF(AQ25<=20000000,100000,200000)) -> 0
AC60: 7 | AG60: 0 | AH60: 0 | AI60: 0 | AJ60: =IF(AQ28<=10000000,0,IF(AQ28<=20000000,100000,200000)) -> 0 | AK60: 0 | AL60: 1 | AM60: 600000
AK61: 1300000 | AL61: 0.75 | AM61: 275000
AF62: 年齢区分 判定基準日 | AK62: 4100000 | AL62: 0.85 | AM62: 685000
AF63: 3340101 | AK63: 7700000 | AL63: 0.95 | AM63: 1455000
AF64: ※税法上65歳以上の年金控除額となる基準日 | AK64: 10000000 | AL64: 1 | AM64: 1955000

Sheet 編集用データ倉庫 (hidden)
B1: ※下記の点に注意して黄色の部分を入力してください。
B2: ①生年月日は、必ず入力してください。 | R2: 平成２７年度 国民健康保険税 試算表
B3: ②非自発軽減は、非自発的離職者に係る国民健康保険税の軽減に該当した場合の試算を希望の際に入力してください。
B4: ③給与収入は、源泉徴収票の支払金額、もしくは申告書の給与収入の金額を入力してください。 | AD4: 区分 | AE4: 医療分 | AG4: 支援分 | AI4: 介護分
B5: ④年金収入（公的年金）は、源泉徴収票の支払金額、もしくは申告書の年金収入の金額を入力してください。 | AD5: 所得割率 | AE5: 7.80 | AF5: ％ | AG5: 2.90 | AH5: ％ | AI5: 2.50 | AJ5: ％
B6: ⑤その他所得には、営業・農業・不動産・その他の事業等の所得金額（収入金額－必要経費）を入力してください。
AD8: 均等割額 | AE8: 17800 | AF8: 円 | AG8: 6000 | AH8: 円 | AI8: 7800 | AJ8: 円
AD10: （１人あたり）
AD11: 平等割額 | AE11: 19700 | AF11: 円 | AG11: 6600 | AH11: 円 | AI11: 5700 | AJ11: 円
AD13: （１世帯あたり）
R26: ※計算結果はあくまで概算であり、実際の税額と異なる場合があります※
K59: 【試算表の使い方】
K61: ◆◇◆下記の三点をお読みいただいた後に、黄色の部分を入力してください◆◇◆
D65: 2
T79: ◇◆◇入力例◇◆◇
U90: 様
V91: （概算）

Sheet Sheet1 (hidden)
